[Event "*** Titled Tuesday Blitz"]
[Site "Chess.com"]
[Date "2020.10.20"]
[Round "2"]
[White "DenishevM"]
[Black "GiantThresher"]
[Result "1-0"]
[WhiteElo "2552"]
[BlackElo "2838"]
[TimeControl "180+1"]
[EndTime "10:19:29 PDT"]
[Termination "DenishevM won by resignation"]

1. d4 {[%clk 0:02:59.8]} 1... Nf6 {[%clk 0:02:36.3]} 2. c4 {[%clk 0:02:58.5]}
2... g6 {[%clk 0:02:34.3]} 3. Nc3 {[%clk 0:02:57.9]} 3... d5 {[%clk 0:02:34.2]}
4. cxd5 {[%clk 0:02:58.8]} 4... Nxd5 {[%clk 0:02:34.4]} 5. e4 {[%clk 0:02:59.5]}
5... Nxc3 {[%clk 0:02:34.8]} 6. bxc3 {[%clk 0:03:00.4]} 6... Bg7 {[%clk
0:02:35.2]} 7. Nf3 {[%clk 0:03:01.2]} 7... c5 {[%clk 0:02:35.5]} 8. Be3 {[%clk
0:03:01.8]} 8... Qa5 {[%clk 0:02:35.1]} 9. Qd2 {[%clk 0:03:01.7]} 9... O-O
{[%clk 0:02:34.9]} 10. Rc1 {[%clk 0:03:01.5]} 10... Rd8 {[%clk 0:02:31.2]} 11.
d5 {[%clk 0:03:00.1]} 11... Nc6 {[%clk 0:02:31.4]} 12. Be2 {[%clk 0:02:54.5]}
12... e6 {[%clk 0:02:25.4]} 13. Bg5 {[%clk 0:02:54.2]} 13... f6 {[%clk
0:02:06.7]} 14. Bf4 {[%clk 0:02:54]} 14... f5 {[%clk 0:01:54.7]} 15. Bg5 {[%clk
0:01:48.6]} 15... fxe4 {[%clk 0:01:53.7]} 16. Bxd8 {[%clk 0:01:45.6]} 16... Nxd8
{[%clk 0:01:52.2]} 17. Ng5 {[%clk 0:01:28.3]} 17... Bh6 {[%clk 0:01:45.8]} 18.
O-O {[%clk 0:01:17.5]} 18... Nf7 {[%clk 0:01:26.1]} 19. h4 {[%clk 0:01:17.3]}
19... Qd8 {[%clk 0:01:24.8]} 20. Nxf7 {[%clk 0:01:05.2]} 20... Bxd2 {[%clk
0:01:21.6]} 21. Nxd8 {[%clk 0:01:05.2]} 21... Bxc1 {[%clk 0:01:22.1]} 22. Rxc1
{[%clk 0:00:53.7]} 22... exd5 {[%clk 0:01:22.3]} 23. Rd1 {[%clk 0:00:53.4]}
23... Kf8 {[%clk 0:01:22.6]} 24. Rxd5 {[%clk 0:00:50.9]} 24... Ke7 {[%clk
0:01:23]} 25. h5 {[%clk 0:00:33.1]} 25... Rb8 {[%clk 0:01:20.7]} 26. f3 {[%clk
0:00:24.4]} 26... Bd7 {[%clk 0:00:55.6]} 27. hxg6 {[%clk 0:00:09.7]} 27... hxg6
{[%clk 0:00:55.4]} 28. fxe4 {[%clk 0:00:10.1]} 28... Rxd8 {[%clk 0:00:55.5]} 29.
Rxc5 {[%clk 0:00:10.7]} 29... Bc6 {[%clk 0:00:56]} 30. Bf3 {[%clk 0:00:09.5]}
30... Rd2 {[%clk 0:00:54.3]} 31. a4 {[%clk 0:00:08.8]} 31... Ra2 {[%clk
0:00:52.1]} 32. a5 {[%clk 0:00:08.6]} 32... Ra3 {[%clk 0:00:32.9]} 33. Kh2
{[%clk 0:00:08.6]} 33... Kd6 {[%clk 0:00:26.9]} 34. Rg5 {[%clk 0:00:08.2]} 34...
Be8 {[%clk 0:00:27.3]} 35. e5+ {[%clk 0:00:07.7]} 35... Ke7 {[%clk 0:00:26.6]}
36. Bxb7 {[%clk 0:00:07.8]} 36... Rxa5 {[%clk 0:00:26.9]} 37. Be4 {[%clk
0:00:05.3]} 37... Ra6 {[%clk 0:00:24.9]} 38. c4 {[%clk 0:00:04.7]} 38... Ra5
{[%clk 0:00:15.4]} 39. Kg3 {[%clk 0:00:03.7]} 39... Rc5 {[%clk 0:00:14.4]} 40.
Bd5 {[%clk 0:00:03.7]} 40... a5 {[%clk 0:00:14.6]} 41. Kf4 {[%clk 0:00:04]}
41... a4 {[%clk 0:00:15.1]} 42. Rg3 {[%clk 0:00:04.7]} 42... Ra5 {[%clk
0:00:15.4]} 43. Ra3 {[%clk 0:00:05.3]} 43... Kd8 {[%clk 0:00:14]} 44. Ke4 {[%clk
0:00:05]} 44... Kc7 {[%clk 0:00:14.6]} 45. Kd4 {[%clk 0:00:05.6]} 45... Kb6
{[%clk 0:00:15.3]} 46. g4 {[%clk 0:00:05.5]} 46... g5 {[%clk 0:00:15.4]} 47. e6
{[%clk 0:00:05.5]} 47... Ra7 {[%clk 0:00:15.2]} 48. Ke5 {[%clk 0:00:05.9]} 48...
Kc5 {[%clk 0:00:15.5]} 49. Kf6 {[%clk 0:00:05.1]} 49... Kb4 {[%clk 0:00:16.1]}
50. Ra1 {[%clk 0:00:04.6]} 50... a3 {[%clk 0:00:16.6]} 51. e7 {[%clk 0:00:04.9]}
51... a2 {[%clk 0:00:17.1]} 52. Be6 {[%clk 0:00:04.6]} 52... Kc5 {[%clk
0:00:16.2]} 53. Bd5 {[%clk 0:00:04.7]} 53... Ra6+ {[%clk 0:00:15.6]} 54. Kg7
{[%clk 0:00:05.2]} 54... Ra7 {[%clk 0:00:15.7]} 55. Kf8 {[%clk 0:00:05.3]} 55...
Bd7 {[%clk 0:00:15.6]} 56. e8=Q {[%clk 0:00:04.5]} 56... Bxe8 {[%clk 0:00:16]}
57. Kxe8 {[%clk 0:00:05.4]} 57... Kd6 {[%clk 0:00:16.3]} 58. Kf8 {[%clk
0:00:05.3]} 58... Ke5 {[%clk 0:00:16.1]} 59. Bf7 {[%clk 0:00:05.1]} 59... Kf6
{[%clk 0:00:15.2]} 60. Rf1+ {[%clk 0:00:04.8]} 60... Ke5 {[%clk 0:00:15.4]} 61.
Ra1 {[%clk 0:00:04.7]} 61... Kf6 {[%clk 0:00:15.9]} 62. Be8 {[%clk 0:00:04.8]}
62... Ke5 {[%clk 0:00:15]} 63. c5 {[%clk 0:00:04.9]} 63... Kd5 {[%clk
0:00:15.3]} 64. Bf7+ {[%clk 0:00:05.4]} 64... Kxc5 {[%clk 0:00:15.2]} 65. Rxa2
{[%clk 0:00:06.1]} 65... Rb7 {[%clk 0:00:15.6]} 66. Ra5+ {[%clk 0:00:06.3]}
66... Kd6 {[%clk 0:00:15.2]} 67. Rxg5 {[%clk 0:00:07.2]} 67... Rb8+ {[%clk
0:00:15.5]} 68. Kg7 {[%clk 0:00:06.4]} 68... Ke7 {[%clk 0:00:16.4]} 69. Re5+
{[%clk 0:00:06.5]} 69... Kd6 {[%clk 0:00:17]} 70. Re1 {[%clk 0:00:07.2]} 1-0

[Event "*** Titled Tuesday Blitz"]
[Site "Chess.com"]
[Date "2020.10.20"]
[Round "2"]
[White "Jumbo"]
[Black "FLamps8"]
[Result "1-0"]
[WhiteElo "2771"]
[BlackElo "2495"]
[TimeControl "180+1"]
[EndTime "10:19:29 PDT"]
[Termination "Jumbo won by resignation"]

1. d4 {[%clk 0:03:00.9]} 1... d5 {[%clk 0:02:57.1]} 2. Bf4 {[%clk 0:03:01.2]}
2... c5 {[%clk 0:02:55.6]} 3. e3 {[%clk 0:03:01.6]} 3... Nc6 {[%clk 0:02:55.8]}
4. c3 {[%clk 0:03:02]} 4... Nf6 {[%clk 0:02:54.7]} 5. Nd2 {[%clk 0:02:59.4]}
5... Bf5 {[%clk 0:02:52.2]} 6. Qb3 {[%clk 0:02:36.4]} 6... Qc8 {[%clk 0:02:49]}
7. Ngf3 {[%clk 0:02:33.5]} 7... e6 {[%clk 0:02:40.6]} 8. Nh4 {[%clk 0:02:28.3]}
8... Bg6 {[%clk 0:02:33.6]} 9. Nxg6 {[%clk 0:02:25.9]} 9... hxg6 {[%clk
0:02:34.5]} 10. h3 {[%clk 0:02:26.2]} 10... Be7 {[%clk 0:02:33.2]} 11. Be2
{[%clk 0:02:25.8]} 11... O-O {[%clk 0:02:25.5]} 12. O-O {[%clk 0:02:26]} 12...
c4 {[%clk 0:02:22.9]} 13. Qc2 {[%clk 0:02:22.2]} 13... b5 {[%clk 0:02:22.9]} 14.
e4 {[%clk 0:02:22.6]} 14... b4 {[%clk 0:02:20.1]} 15. Bf3 {[%clk 0:02:17.7]}
15... a5 {[%clk 0:02:10]} 16. Rfe1 {[%clk 0:02:16.3]} 16... Qd7 {[%clk
0:02:08.3]} 17. Bg3 {[%clk 0:02:06.5]} 17... a4 {[%clk 0:02:03.7]} 18. exd5
{[%clk 0:01:56.9]} 18... exd5 {[%clk 0:02:04.6]} 19. Nxc4 {[%clk 0:01:51.4]}
19... dxc4 {[%clk 0:01:53.6]} 20. Bxc6 {[%clk 0:01:51]} 20... Qxc6 {[%clk
0:01:54.3]} 21. Rxe7 {[%clk 0:01:46.9]} 21... Nd5 {[%clk 0:01:54.3]} 22. Re2
{[%clk 0:01:25.9]} 22... a3 {[%clk 0:01:49.6]} 23. cxb4 {[%clk 0:01:25.6]} 23...
Nxb4 {[%clk 0:01:39.7]} 24. Qd2 {[%clk 0:01:18.6]} 24... axb2 {[%clk 0:01:04.6]}
25. Qxb2 {[%clk 0:01:19.5]} 25... Nd5 {[%clk 0:01:05.1]} 26. Rc1 {[%clk
0:01:18.8]} 26... Ra4 {[%clk 0:01:03.1]} 27. Re5 {[%clk 0:00:50.1]} 27... Rfa8
{[%clk 0:00:51]} 28. Qe2 {[%clk 0:00:49.4]} 28... c3 {[%clk 0:00:42.2]} 29. Qe4
{[%clk 0:00:47.6]} 29... Nb4 {[%clk 0:00:19]} 30. Rxc3 {[%clk 0:00:32.5]} 30...
Qxc3 {[%clk 0:00:14.2]} 31. Re8+ {[%clk 0:00:32.7]} 31... Rxe8 {[%clk
0:00:13.6]} 32. Qxe8+ {[%clk 0:00:33.6]} 32... Kh7 {[%clk 0:00:11.8]} 33. Qxa4
{[%clk 0:00:34.1]} 33... Qxd4 {[%clk 0:00:08.9]} 34. Kh2 {[%clk 0:00:33.7]}
34... Qb2 {[%clk 0:00:07.5]} 35. Qb3 {[%clk 0:00:30.3]} 35... Qxb3 {[%clk
0:00:03.8]} 36. axb3 {[%clk 0:00:31.2]} 36... g5 {[%clk 0:00:03.9]} 37. Bd6
{[%clk 0:00:28.7]} 37... Nd5 {[%clk 0:00:03.5]} 38. Kg3 {[%clk 0:00:27.8]} 38...
Kg6 {[%clk 0:00:03.9]} 39. Kf3 {[%clk 0:00:27.6]} 39... Kf5 {[%clk 0:00:04.4]}
40. g4+ {[%clk 0:00:24.6]} 40... Ke6 {[%clk 0:00:04.8]} 41. Bf8 {[%clk
0:00:25.1]} 41... g6 {[%clk 0:00:05.1]} 42. Ke4 {[%clk 0:00:24.8]} 42... f5+
{[%clk 0:00:05.6]} 43. Kd4 {[%clk 0:00:23.4]} 43... Nf4 {[%clk 0:00:05.3]} 44.
b4 {[%clk 0:00:17.9]} 44... Nxh3 {[%clk 0:00:05.6]} 45. Ke3 {[%clk 0:00:17.7]}
45... fxg4 {[%clk 0:00:05.3]} 46. b5 {[%clk 0:00:16.3]} 46... Kd5 {[%clk
0:00:05.8]} 47. Be7 {[%clk 0:00:12.8]} 47... Nf4 {[%clk 0:00:04.9]} 48. Bxg5
{[%clk 0:00:12.8]} 48... Ne6 {[%clk 0:00:05.3]} 49. Be7 {[%clk 0:00:12.6]} 49...
g5 {[%clk 0:00:05.6]} 50. Ba3 {[%clk 0:00:09.5]} 50... Nd4 {[%clk 0:00:05.2]}
51. b6 {[%clk 0:00:09.7]} 51... Nf5+ {[%clk 0:00:02.8]} 52. Kd3 {[%clk
0:00:09.9]} 52... Kc6 {[%clk 0:00:03.3]} 53. Ke4 {[%clk 0:00:09.9]} 53... Nh4
{[%clk 0:00:03.1]} 54. Bc5 {[%clk 0:00:09.3]} 54... Nf3 {[%clk 0:00:02.7]} 55.
Be3 {[%clk 0:00:08.9]} 55... Ng1 {[%clk 0:00:02.2]} 56. Kf5 {[%clk 0:00:09]}
56... Nh3 {[%clk 0:00:02.3]} 57. Kxg4 {[%clk 0:00:09.4]} 57... Ng1 {[%clk
0:00:01.1]} 58. Kxg5 {[%clk 0:00:09.4]} 58... Nf3+ {[%clk 0:00:01.5]} 59. Kf5
{[%clk 0:00:09.6]} 59... Nh4+ {[%clk 0:00:01.5]} 60. Ke4 {[%clk 0:00:09.7]}
60... Ng2 {[%clk 0:00:02.4]} 61. f4 {[%clk 0:00:09.8]} 61... Nxe3 {[%clk
0:00:01.9]} 62. Kxe3 {[%clk 0:00:10.7]} 62... Kxb6 {[%clk 0:00:02.8]} 63. Kd4
{[%clk 0:00:10.8]} 63... Kc7 {[%clk 0:00:03.7]} 64. Ke5 {[%clk 0:00:11.3]} 64...
Kd7 {[%clk 0:00:04.6]} 65. Kf6 {[%clk 0:00:11.6]} 65... Kd6 {[%clk 0:00:04.9]}
1-0

[Event "*** Titled Tuesday Blitz"]
[Site "Chess.com"]
[Date "2020.10.20"]
[Round "2"]
[White "ajedrezhoy"]
[Black "fabianvivasz"]
[Result "0-1"]
[WhiteElo "2234"]
[BlackElo "2436"]
[TimeControl "180+1"]
[EndTime "10:19:29 PDT"]
[Termination "fabianvivasz won on time"]

1. d4 {[%clk 0:03:00.9]} 1... Nf6 {[%clk 0:02:58.6]} 2. c4 {[%clk 0:02:59.7]}
2... g6 {[%clk 0:02:57]} 3. Nc3 {[%clk 0:02:58.8]} 3... d5 {[%clk 0:02:56.9]} 4.
cxd5 {[%clk 0:02:58.1]} 4... Nxd5 {[%clk 0:02:56.9]} 5. e4 {[%clk 0:02:58.7]}
5... Nxc3 {[%clk 0:02:56.4]} 6. bxc3 {[%clk 0:02:58.8]} 6... Bg7 {[%clk
0:02:54.9]} 7. Bb5+ {[%clk 0:02:59.4]} 7... c6 {[%clk 0:02:52.4]} 8. Ba4 {[%clk
0:02:58.5]} 8... O-O {[%clk 0:02:51.3]} 9. Ne2 {[%clk 0:02:58.3]} 9... c5 {[%clk
0:02:35.4]} 10. O-O {[%clk 0:02:56.9]} 10... Qa5 {[%clk 0:02:08.9]} 11. Be3
{[%clk 0:02:50.9]} 11... Rd8 {[%clk 0:02:03.3]} 12. Rb1 {[%clk 0:02:33.4]} 12...
a6 {[%clk 0:01:48]} 13. Bb3 {[%clk 0:02:17.5]} 13... Nc6 {[%clk 0:01:19.2]} 14.
Bd5 {[%clk 0:02:06.5]} 14... e6 {[%clk 0:00:57.1]} 15. Bxc6 {[%clk 0:01:55.5]}
15... bxc6 {[%clk 0:00:58]} 16. Qb3 {[%clk 0:01:46]} 16... cxd4 {[%clk
0:00:51.3]} 17. cxd4 {[%clk 0:01:44]} 17... e5 {[%clk 0:00:42.9]} 18. dxe5
{[%clk 0:01:38.9]} 18... Qxe5 {[%clk 0:00:40.9]} 19. Qc4 {[%clk 0:01:29.2]}
19... Be6 {[%clk 0:00:34.9]} 20. Qa4 {[%clk 0:01:22.6]} 20... c5 {[%clk
0:00:28.5]} 21. Nf4 {[%clk 0:01:19]} 21... Bd7 {[%clk 0:00:25]} 22. Qc2 {[%clk
0:01:12.9]} 22... Bb5 {[%clk 0:00:22.3]} 23. Rfd1 {[%clk 0:01:02.7]} 23... Rac8
{[%clk 0:00:18.8]} 24. Nd5 {[%clk 0:01:01.3]} 24... Bc6 {[%clk 0:00:14.5]} 25.
Bf4 {[%clk 0:00:52.3]} 25... Qe6 {[%clk 0:00:13.6]} 26. Bg5 {[%clk 0:00:50]}
26... f6 {[%clk 0:00:09.6]} 27. Be3 {[%clk 0:00:45.9]} 27... Bxd5 {[%clk
0:00:09.4]} 28. exd5 {[%clk 0:00:45.7]} 28... Rxd5 {[%clk 0:00:10.3]} 29. Rxd5
{[%clk 0:00:32.8]} 29... Qxd5 {[%clk 0:00:11.2]} 30. Qa4 {[%clk 0:00:24.4]}
30... Qe6 {[%clk 0:00:09.8]} 31. Rc1 {[%clk 0:00:22]} 31... Bf8 {[%clk
0:00:08.9]} 32. h4 {[%clk 0:00:20.6]} 32... h5 {[%clk 0:00:08]} 33. Qc4 {[%clk
0:00:17.3]} 33... Qxc4 {[%clk 0:00:07.1]} 34. Rxc4 {[%clk 0:00:17.2]} 34... Kf7
{[%clk 0:00:07.2]} 35. Ra4 {[%clk 0:00:16.3]} 35... Rc6 {[%clk 0:00:07.3]} 36.
Rc4 {[%clk 0:00:16]} 36... Ke6 {[%clk 0:00:07.6]} 37. f3 {[%clk 0:00:15.9]}
37... Kd5 {[%clk 0:00:08.2]} 38. Rc2 {[%clk 0:00:15.3]} 38... c4 {[%clk
0:00:08.9]} 39. Kf2 {[%clk 0:00:15.3]} 39... c3 {[%clk 0:00:07.9]} 40. Ke2
{[%clk 0:00:15]} 40... Kc4 {[%clk 0:00:07.6]} 41. Bd2 {[%clk 0:00:12.3]} 41...
Re6+ {[%clk 0:00:06.5]} 42. Kd1 {[%clk 0:00:10.7]} 42... Rd6 {[%clk 0:00:06.4]}
43. Rxc3+ {[%clk 0:00:08.4]} 43... Kb5 {[%clk 0:00:03.5]} 44. Rb3+ {[%clk
0:00:07.3]} 44... Kc4 {[%clk 0:00:02.8]} 45. Ke2 {[%clk 0:00:06.9]} 45... Re6+
{[%clk 0:00:02.8]} 46. Kd1 {[%clk 0:00:07]} 46... Bc5 {[%clk 0:00:03.1]} 47. Kc2
{[%clk 0:00:06.7]} 47... Rd6 {[%clk 0:00:03.1]} 48. Rc3+ {[%clk 0:00:06]} 48...
Kb5 {[%clk 0:00:03]} 49. a4+ {[%clk 0:00:05.4]} 49... Kc6 {[%clk 0:00:02.8]} 50.
Be3 {[%clk 0:00:05]} 50... Rd5 {[%clk 0:00:03.7]} 51. g4 {[%clk 0:00:04.6]}
51... Kd6 {[%clk 0:00:04.2]} 52. Bf4+ {[%clk 0:00:04.1]} 52... Kc6 {[%clk
0:00:04.2]} 53. Be3 {[%clk 0:00:03.6]} 53... Kd6 {[%clk 0:00:04.7]} 54. Bxc5+
{[%clk 0:00:03.4]} 54... Rxc5 {[%clk 0:00:04.7]} 55. gxh5 {[%clk 0:00:03.4]}
55... gxh5 {[%clk 0:00:04.7]} 56. Kd3 {[%clk 0:00:02.3]} 56... Rxc3+ {[%clk
0:00:04.4]} 57. Kxc3 {[%clk 0:00:02.3]} 57... Kc5 {[%clk 0:00:05.3]} 58. f4
{[%clk 0:00:01.1]} 58... a5 {[%clk 0:00:03.6]} 0-1

[Event "*** Titled Tuesday Blitz"]
[Site "Chess.com"]
[Date "2020.10.20"]
[Round "2"]
[White "Synctel"]
[Black "Trickov"]
[Result "1-0"]
[WhiteElo "2000"]
[BlackElo "2347"]
[TimeControl "180+1"]
[EndTime "10:19:35 PDT"]
[Termination "Synctel won on time"]

1. e4 {[%clk 0:03:00.9]} 1... c5 {[%clk 0:02:55]} 2. Ne2 {[%clk 0:02:59.6]} 2...
d6 {[%clk 0:02:53.9]} 3. g3 {[%clk 0:02:58.8]} 3... Nf6 {[%clk 0:02:51.9]} 4.
Bg2 {[%clk 0:02:59.7]} 4... g6 {[%clk 0:02:50]} 5. O-O {[%clk 0:02:50.9]} 5...
Bg7 {[%clk 0:02:49.9]} 6. c3 {[%clk 0:02:51.3]} 6... c4 {[%clk 0:02:48.4]} 7. b3
{[%clk 0:02:48.5]} 7... cxb3 {[%clk 0:02:46.8]} 8. axb3 {[%clk 0:02:48.9]} 8...
O-O {[%clk 0:02:46.3]} 9. d4 {[%clk 0:02:49.1]} 9... Nc6 {[%clk 0:02:42.3]} 10.
h3 {[%clk 0:02:45.7]} 10... e5 {[%clk 0:02:40.2]} 11. Be3 {[%clk 0:02:41.7]}
11... a6 {[%clk 0:02:37.4]} 12. c4 {[%clk 0:02:37.5]} 12... Re8 {[%clk
0:02:22.3]} 13. Nbc3 {[%clk 0:02:28.6]} 13... Bd7 {[%clk 0:01:51.1]} 14. dxe5
{[%clk 0:02:21.3]} 14... dxe5 {[%clk 0:01:48.7]} 15. Nd5 {[%clk 0:02:20]} 15...
Be6 {[%clk 0:01:34]} 16. Bb6 {[%clk 0:01:51.1]} 16... Qd7 {[%clk 0:01:30.8]} 17.
Nc7 {[%clk 0:01:46.2]} 17... Bxh3 {[%clk 0:01:18.9]} 18. Nxe8 {[%clk 0:01:37.2]}
18... Rxe8 {[%clk 0:01:18.1]} 19. Qxd7 {[%clk 0:01:33.3]} 19... Bxd7 {[%clk
0:01:17.2]} 20. Nc3 {[%clk 0:01:32.8]} 20... Nd4 {[%clk 0:01:16.3]} 21. Rab1
{[%clk 0:00:45.9]} 21... Bg4 {[%clk 0:01:01.8]} 22. f3 {[%clk 0:00:41.2]} 22...
Bd7 {[%clk 0:00:54.2]} 23. Rfd1 {[%clk 0:00:39.6]} 23... Bc6 {[%clk 0:00:49.8]}
24. Bxd4 {[%clk 0:00:25.2]} 24... exd4 {[%clk 0:00:49.4]} 25. Rxd4 {[%clk
0:00:25.6]} 25... Nxe4 {[%clk 0:00:42.2]} 26. Rxe4 {[%clk 0:00:25.8]} 26... Bxe4
{[%clk 0:00:40.3]} 27. Nxe4 {[%clk 0:00:19.8]} 27... f5 {[%clk 0:00:33.5]} 28.
Nd6 {[%clk 0:00:13]} 28... Re7 {[%clk 0:00:33.6]} 29. Rd1 {[%clk 0:00:11.5]}
29... b6 {[%clk 0:00:31.9]} 30. Nc8 {[%clk 0:00:10.3]} 30... Re3 {[%clk
0:00:26.5]} 31. Rb1 {[%clk 0:00:08.3]} 31... Bd4 {[%clk 0:00:23.9]} 32. Kf1
{[%clk 0:00:08.2]} 32... a5 {[%clk 0:00:23.8]} 33. Na7 {[%clk 0:00:06.2]} 33...
Bc5 {[%clk 0:00:20.2]} 34. Nc6 {[%clk 0:00:04.8]} 34... g5 {[%clk 0:00:17]} 35.
f4 {[%clk 0:00:04.2]} 35... Rxg3 {[%clk 0:00:15.9]} 36. Bd5+ {[%clk 0:00:04.4]}
36... Kg7 {[%clk 0:00:15.4]} 37. Re1 {[%clk 0:00:03.8]} 37... gxf4 {[%clk
0:00:15.1]} 38. Re8 {[%clk 0:00:01.4]} 38... f3 {[%clk 0:00:13.8]} 39. Rg8+
{[%clk 0:00:01.6]} 39... Kf6 {[%clk 0:00:13.7]} 40. Rxg3 {[%clk 0:00:02.4]}
40... h5 {[%clk 0:00:13.6]} 41. Rxf3 {[%clk 0:00:03.1]} 41... Kg5 {[%clk
0:00:12.8]} 42. Kg2 {[%clk 0:00:03.7]} 42... h4 {[%clk 0:00:12.7]} 43. Rh3
{[%clk 0:00:03.5]} 43... Kg4 {[%clk 0:00:12.8]} 44. Rd3 {[%clk 0:00:04.1]} 44...
f4 {[%clk 0:00:12.3]} 45. Be6+ {[%clk 0:00:04.8]} 45... Kg5 {[%clk 0:00:12.3]}
46. Bh3 {[%clk 0:00:05]} 46... Kf6 {[%clk 0:00:12.4]} 47. Rd5 {[%clk 0:00:05.9]}
47... Kf7 {[%clk 0:00:11.4]} 48. Kf3 {[%clk 0:00:06.8]} 48... Be3 {[%clk
0:00:09.9]} 49. Kg4 {[%clk 0:00:07]} 49... Kf6 {[%clk 0:00:10.1]} 50. Kxh4
{[%clk 0:00:07.4]} 50... f3 {[%clk 0:00:10.5]} 51. Kg4 {[%clk 0:00:07.6]} 51...
f2 {[%clk 0:00:10.8]} 52. Kf3 {[%clk 0:00:08]} 52... Bc5 {[%clk 0:00:10.3]} 53.
Bf1 {[%clk 0:00:07.8]} 53... Ke6 {[%clk 0:00:09.8]} 54. Rd2 {[%clk 0:00:07.7]}
54... Kf5 {[%clk 0:00:08.7]} 55. Nd8 {[%clk 0:00:07]} 55... Ke5 {[%clk
0:00:07.9]} 56. Nb7 {[%clk 0:00:07.4]} 56... Bb4 {[%clk 0:00:08]} 57. Rxf2
{[%clk 0:00:07]} 57... Kd4 {[%clk 0:00:08.2]} 58. Re2 {[%clk 0:00:07.9]} 58...
Kc3 {[%clk 0:00:08.3]} 59. Re3+ {[%clk 0:00:08]} 59... Kd4 {[%clk 0:00:08.2]}
60. Rd3+ {[%clk 0:00:08.9]} 60... Ke5 {[%clk 0:00:07.4]} 61. Nd8 {[%clk
0:00:09.3]} 61... Bc5 {[%clk 0:00:06.6]} 62. Nc6+ {[%clk 0:00:10]} 62... Kf5
{[%clk 0:00:06.2]} 63. Bh3+ {[%clk 0:00:10.8]} 63... Kf6 {[%clk 0:00:05.4]} 64.
Rd5 {[%clk 0:00:11.7]} 64... Kf7 {[%clk 0:00:04.4]} 65. Ke4 {[%clk 0:00:12.6]}
65... Ke8 {[%clk 0:00:04.2]} 66. Kf5 {[%clk 0:00:13.5]} 66... Kf7 {[%clk
0:00:04.1]} 67. Nd8+ {[%clk 0:00:13]} 67... Ke8 {[%clk 0:00:04.1]} 68. Ne6
{[%clk 0:00:13.9]} 68... Bb4 {[%clk 0:00:03.7]} 69. Nf4 {[%clk 0:00:13.7]} 69...
Ke7 {[%clk 0:00:03.7]} 70. Re5+ {[%clk 0:00:13.1]} 70... Kd6 {[%clk 0:00:03.7]}
71. Rd5+ {[%clk 0:00:13.4]} 71... Kc6 {[%clk 0:00:03.8]} 72. Ng6 {[%clk
0:00:14]} 72... b5 {[%clk 0:00:03.7]} 73. Ke6 {[%clk 0:00:13.7]} 73... bxc4
{[%clk 0:00:03.3]} 74. bxc4 {[%clk 0:00:14.6]} 74... a4 {[%clk 0:00:03.7]} 75.
Ne7+ {[%clk 0:00:14.2]} 75... Kc7 {[%clk 0:00:02.8]} 76. Rb5 {[%clk 0:00:13.5]}
1-0